[Event "*** Titled Tuesday Blitz"]
[Site "Chess.com"]
[Date "2018.04.03"]
[Round "4"]
[White "Marcus_Harvey"]
[Black "kjzsdu"]
[Result "0-1"]
[WhiteElo "2620"]
[BlackElo "2441"]
[TimeControl "180+2"]
[EndTime "13:52:16 PDT"]
[Termination "kjzsdu won by resignation"]

1. e4 {[%clk 0:02:53.3]} 1... c5 {[%clk 0:03:00.3]} 2. Nf3 {[%clk 0:02:54.2]}
2... d6 {[%clk 0:03:00]} 3. g3 {[%clk 0:02:55.5]} 3... Nf6 {[%clk 0:03:00]} 4.
Qe2 {[%clk 0:02:56.7]} 4... Nc6 {[%clk 0:03:00.6]} 5. Bg2 {[%clk 0:02:58]} 5...
e5 {[%clk 0:03:01.1]} 6. c3 {[%clk 0:02:54.9]} 6... Be7 {[%clk 0:03:00.9]} 7.
O-O {[%clk 0:02:55.3]} 7... O-O {[%clk 0:03:01.6]} 8. d3 {[%clk 0:02:56.8]} 8...
Rb8 {[%clk 0:03:01.7]} 9. a3 {[%clk 0:02:57]} 9... b5 {[%clk 0:03:02.4]} 10. b4
{[%clk 0:02:57.1]} 10... cxb4 {[%clk 0:02:57.9]} 11. axb4 {[%clk 0:02:57.2]}
11... a5 {[%clk 0:02:56.3]} 12. bxa5 {[%clk 0:02:57.7]} 12... Nxa5 {[%clk
0:02:57.5]} 13. Nbd2 {[%clk 0:02:51.8]} 13... Be6 {[%clk 0:02:54.4]} 14. Ng5
{[%clk 0:02:50.1]} 14... Bg4 {[%clk 0:02:53.2]} 15. f3 {[%clk 0:02:49.9]} 15...
Bd7 {[%clk 0:02:52.9]} 16. f4 {[%clk 0:02:49.4]} 16... Bg4 {[%clk 0:02:49.3]}
17. Ngf3 {[%clk 0:02:45.9]} 17... Qc7 {[%clk 0:02:42.5]} 18. Bb2 {[%clk
0:02:44.9]} 18... b4 {[%clk 0:02:32]} 19. c4 {[%clk 0:02:45.2]} 19... Nc6 {[%clk
0:02:26.3]} 20. Nb3 {[%clk 0:02:44.7]} 20... Nd7 {[%clk 0:02:15.6]} 21. h3
{[%clk 0:02:29.1]} 21... Bxf3 {[%clk 0:02:12.6]} 22. Bxf3 {[%clk 0:02:29.3]}
22... Rfe8 {[%clk 0:02:09.5]} 23. Kg2 {[%clk 0:02:13.3]} 23... Nc5 {[%clk
0:01:54.7]} 24. Qc2 {[%clk 0:01:52.1]} 24... exf4 {[%clk 0:01:48.5]} 25. gxf4
{[%clk 0:01:52.4]} 25... Bf8 {[%clk 0:01:24.5]} 26. d4 {[%clk 0:01:46.1]} 26...
Nxb3 {[%clk 0:01:16.5]} 27. Qxb3 {[%clk 0:01:47.2]} 27... Na5 {[%clk 0:01:16.6]}
28. Rxa5 {[%clk 0:01:45.2]} 28... Qxa5 {[%clk 0:01:15.1]} 29. Ra1 {[%clk
0:01:42.8]} 29... Qc7 {[%clk 0:01:12.7]} 30. e5 {[%clk 0:01:43.6]} 30... dxe5
{[%clk 0:01:10.8]} 31. fxe5 {[%clk 0:01:44.1]} 31... Qd8 {[%clk 0:01:02.4]} 32.
Qe3 {[%clk 0:01:36.7]} 32... b3 {[%clk 0:00:58.5]} 33. Ra7 {[%clk 0:01:34.2]}
33... Re7 {[%clk 0:00:54.9]} 34. Ra3 {[%clk 0:01:27]} 34... Re6 {[%clk
0:00:48.2]} 35. c5 {[%clk 0:01:25]} 35... Rg6+ {[%clk 0:00:44.1]} 36. Kh2 {[%clk
0:01:14.9]} 36... Qh4 {[%clk 0:00:41.4]} 37. Bg2 {[%clk 0:01:11.2]} 37... Be7
{[%clk 0:00:29.7]} 38. Qf3 {[%clk 0:00:48.8]} 38... Bg5 {[%clk 0:00:20.8]} 39.
Ra7 {[%clk 0:00:29.7]} 39... Bf4+ {[%clk 0:00:18.9]} 40. Kh1 {[%clk 0:00:31]}
40... h5 {[%clk 0:00:19.6]} 41. c6 {[%clk 0:00:27.9]} 41... Rg3 {[%clk
0:00:15.1]} 42. Qf1 {[%clk 0:00:24.4]} 42... Re3 {[%clk 0:00:14]} 43. c7 {[%clk
0:00:24.9]} 43... Rc8 {[%clk 0:00:15.1]} 44. Ra1 {[%clk 0:00:07.6]} 44... Qg3
{[%clk 0:00:13.2]} 45. Kg1 {[%clk 0:00:08.7]} 45... Qh2+ {[%clk 0:00:12]} 46.
Kf2 {[%clk 0:00:09.6]} 46... Qg3+ {[%clk 0:00:13.7]} 47. Kg1 {[%clk 0:00:10.6]}
47... Rxc7 {[%clk 0:00:14.6]} 48. Qf2 {[%clk 0:00:11.1]} 48... Qh2+ {[%clk
0:00:14.7]} 49. Kf1 {[%clk 0:00:12.3]} 49... Rc2 {[%clk 0:00:16.1]} 0-1

[Event "*** Titled Tuesday Blitz"]
[Site "Chess.com"]
[Date "2018.04.03"]
[Round "4"]
[White "ChesterF"]
[Black "Vincent_Vega95"]
[Result "0-1"]
[WhiteElo "2304"]
[BlackElo "2530"]
[TimeControl "180+2"]
[EndTime "13:52:16 PDT"]
[Termination "Vincent_Vega95 won by resignation"]

1. e4 {[%clk 0:02:57.5]} 1... c5 {[%clk 0:03:00.8]} 2. Nf3 {[%clk 0:02:58.6]}
2... d6 {[%clk 0:03:01.7]} 3. d4 {[%clk 0:02:59.8]} 3... cxd4 {[%clk 0:03:03.6]}
4. Nxd4 {[%clk 0:03:01.1]} 4... Nf6 {[%clk 0:03:04.7]} 5. Nc3 {[%clk 0:03:02.4]}
5... a6 {[%clk 0:03:06]} 6. Be3 {[%clk 0:03:03.2]} 6... e5 {[%clk 0:03:04.3]} 7.
Nb3 {[%clk 0:03:04]} 7... Be6 {[%clk 0:03:04.9]} 8. h3 {[%clk 0:03:03.5]} 8...
Nbd7 {[%clk 0:03:04.8]} 9. g4 {[%clk 0:03:04.3]} 9... Nb6 {[%clk 0:03:03.6]} 10.
g5 {[%clk 0:02:52.7]} 10... Nfd7 {[%clk 0:03:03.8]} 11. Qd2 {[%clk 0:02:41.8]}
11... Rc8 {[%clk 0:03:03.7]} 12. O-O-O {[%clk 0:02:42.3]} 12... Nc4 {[%clk
0:03:04.6]} 13. Bxc4 {[%clk 0:02:42.6]} 13... Rxc4 {[%clk 0:03:06.5]} 14. f4
{[%clk 0:02:42.4]} 14... Rc8 {[%clk 0:02:32.1]} 15. f5 {[%clk 0:02:39.5]} 15...
Bc4 {[%clk 0:02:32.9]} 16. h4 {[%clk 0:02:36.3]} 16... b5 {[%clk 0:02:32.5]} 17.
h5 {[%clk 0:02:33.2]} 17... a5 {[%clk 0:02:32.7]} 18. Kb1 {[%clk 0:02:15.2]}
18... Qc7 {[%clk 0:02:26.3]} 19. g6 {[%clk 0:01:36.6]} 19... b4 {[%clk
0:02:16.8]} 20. Nd5 {[%clk 0:01:27.4]} 20... Bxd5 {[%clk 0:01:44.4]} 21. Qxd5
{[%clk 0:01:27.7]} 21... Nf6 {[%clk 0:01:37.5]} 22. gxf7+ {[%clk 0:01:19.4]}
22... Qxf7 {[%clk 0:01:37.6]} 23. Qxa5 {[%clk 0:01:18.1]} 23... Qc7 {[%clk
0:01:26.4]} 24. Qxc7 {[%clk 0:00:54.7]} 24... Rxc7 {[%clk 0:01:27.4]} 25. Nd2
{[%clk 0:00:56.2]} 25... h6 {[%clk 0:01:21.1]} 26. Rhe1 {[%clk 0:00:49.7]} 26...
Be7 {[%clk 0:01:17]} 27. b3 {[%clk 0:00:47.7]} 27... Kf7 {[%clk 0:01:10.7]} 28.
Bb6 {[%clk 0:00:45.3]} 28... Rc6 {[%clk 0:01:09.4]} 29. Nc4 {[%clk 0:00:45.7]}
29... Rhc8 {[%clk 0:01:08.6]} 30. Bf2 {[%clk 0:00:43.2]} 30... Nxh5 {[%clk
0:01:06.3]} 31. Kb2 {[%clk 0:00:26.8]} 31... Nf6 {[%clk 0:01:05.7]} 32. Bh4
{[%clk 0:00:23.9]} 32... Ng4 {[%clk 0:01:03.3]} 33. Bxe7 {[%clk 0:00:20.2]}
33... Kxe7 {[%clk 0:01:05.1]} 34. Rd5 {[%clk 0:00:21.7]} 34... Nf6 {[%clk
0:00:26.4]} 35. Rb5 {[%clk 0:00:22.5]} 35... h5 {[%clk 0:00:26]} 36. Rxb4 {[%clk
0:00:21]} 36... h4 {[%clk 0:00:23.9]} 37. Ne3 {[%clk 0:00:19.3]} 37... Rh8
{[%clk 0:00:22.8]} 38. Rb7+ {[%clk 0:00:18.6]} 38... Kd8 {[%clk 0:00:21.8]} 39.
Rxg7 {[%clk 0:00:17.5]} 39... h3 {[%clk 0:00:22.8]} 40. Rh1 {[%clk 0:00:17.4]}
40... Nxe4 {[%clk 0:00:22.6]} 41. c4 {[%clk 0:00:16.8]} 41... Rc7 {[%clk
0:00:18.3]} 42. Rg4 {[%clk 0:00:18]} 42... Nf2 {[%clk 0:00:19.4]} 43. Rgg1
{[%clk 0:00:16]} 43... h2 {[%clk 0:00:20]} 44. Rf1 {[%clk 0:00:15.1]} 44... Nxh1
{[%clk 0:00:21.1]} 45. Rxh1 {[%clk 0:00:16.4]} 45... Rg7 {[%clk 0:00:22.6]} 0-1

[Event "*** Titled Tuesday Blitz"]
[Site "Chess.com"]
[Date "2018.04.03"]
[Round "4"]
[White "SanQui14"]
[Black "335394862"]
[Result "0-1"]
[WhiteElo "2210"]
[BlackElo "2306"]
[TimeControl "180+2"]
[EndTime "13:52:34 PDT"]
[Termination "335394862 won by resignation"]

1. e4 {[%clk 0:03:01.4]} 1... c5 {[%clk 0:02:58.1]} 2. Nf3 {[%clk 0:03:02.1]}
2... Nc6 {[%clk 0:02:59.2]} 3. Bb5 {[%clk 0:03:02]} 3... g6 {[%clk 0:03:00.3]}
4. c3 {[%clk 0:03:02.8]} 4... Bg7 {[%clk 0:02:58.3]} 5. d4 {[%clk 0:03:03.8]}
5... cxd4 {[%clk 0:02:38.6]} 6. cxd4 {[%clk 0:03:05.7]} 6... d5 {[%clk
0:02:36.4]} 7. exd5 {[%clk 0:03:01.7]} 7... Qxd5 {[%clk 0:02:33.6]} 8. Nc3
{[%clk 0:03:03]} 8... Qe6+ {[%clk 0:02:01.2]} 9. Be3 {[%clk 0:03:03.4]} 9... Nf6
{[%clk 0:01:58]} 10. d5 {[%clk 0:02:56]} 10... Nxd5 {[%clk 0:01:54.6]} 11. Nxd5
{[%clk 0:02:56.3]} 11... Qd6 {[%clk 0:01:49]} 12. Nc3 {[%clk 0:02:50]} 12... Qb4
{[%clk 0:01:44.9]} 13. Bxc6+ {[%clk 0:02:49.4]} 13... bxc6 {[%clk 0:01:46.8]}
14. O-O {[%clk 0:02:48.3]} 14... Qxb2 {[%clk 0:01:43.6]} 15. Na4 {[%clk
0:02:37.1]} 15... Qxa1 {[%clk 0:01:40.9]} 16. Qxa1 {[%clk 0:02:38]} 16... Bxa1
{[%clk 0:01:42.7]} 17. Rxa1 {[%clk 0:02:39.1]} 17... Be6 {[%clk 0:01:42]} 18.
Nc5 {[%clk 0:02:37.8]} 18... Bd5 {[%clk 0:01:39.6]} 19. Bh6 {[%clk 0:02:24.5]}
19... f6 {[%clk 0:01:34.4]} 20. Re1 {[%clk 0:02:06.7]} 20... Kf7 {[%clk
0:01:31.7]} 21. a4 {[%clk 0:02:02.4]} 21... g5 {[%clk 0:01:13.9]} 22. h4 {[%clk
0:02:03.2]} 22... Kg6 {[%clk 0:00:58.1]} 23. hxg5 {[%clk 0:02:03.1]} 23... fxg5
{[%clk 0:00:53.6]} 24. Bxg5 {[%clk 0:01:33.1]} 24... Bxf3 {[%clk 0:00:52.3]} 25.
gxf3 {[%clk 0:01:34]} 25... Kxg5 {[%clk 0:00:52.6]} 26. Rxe7 {[%clk 0:01:34.8]}
26... h5 {[%clk 0:00:48.1]} 27. Kg2 {[%clk 0:01:30.8]} 27... h4 {[%clk 0:00:45]}
28. Kh3 {[%clk 0:01:22.6]} 28... Kf4 {[%clk 0:00:35]} 29. Nd3+ {[%clk
0:01:05.4]} 29... Kf5 {[%clk 0:00:25.2]} 30. Rc7 {[%clk 0:00:57.6]} 30... Rac8
{[%clk 0:00:18.4]} 31. Rxa7 {[%clk 0:00:57.5]} 31... Ke6 {[%clk 0:00:10.9]} 32.
Rg7 {[%clk 0:00:53.9]} 32... c5 {[%clk 0:00:10.4]} 33. Rg1 {[%clk 0:00:42.9]}
33... c4 {[%clk 0:00:11.1]} 34. Nf4+ {[%clk 0:00:42]} 34... Kf5 {[%clk 0:00:12]}
35. Nd5 {[%clk 0:00:42.4]} 35... Ke5 {[%clk 0:00:10.8]} 36. Ne3 {[%clk
0:00:41.4]} 36... c3 {[%clk 0:00:11]} 37. a5 {[%clk 0:00:38.7]} 37... Kf4 {[%clk
0:00:10]} 38. Rc1 {[%clk 0:00:20.4]} 38... Kxf3 {[%clk 0:00:09.9]} 39. Rc2
{[%clk 0:00:21.8]} 39... Rc5 {[%clk 0:00:06.9]} 40. a6 {[%clk 0:00:22]} 40...
Ke4 {[%clk 0:00:08]} 41. a7 {[%clk 0:00:17.4]} 41... Kd3 {[%clk 0:00:09.1]} 42.
Ra2 {[%clk 0:00:18.5]} 42... Ra8 {[%clk 0:00:09.1]} 43. Nc2 {[%clk 0:00:18.4]}
43... Kc4 {[%clk 0:00:08.8]} 44. Ra3 {[%clk 0:00:18.5]} 44... Kd3 {[%clk
0:00:08]} 45. Nb4+ {[%clk 0:00:19]} 45... Kd2 {[%clk 0:00:08.1]} 46. Na6 {[%clk
0:00:04.6]} 46... Rc4 {[%clk 0:00:09.3]} 47. Nb8 {[%clk 0:00:03.8]} 47... c2
{[%clk 0:00:09.9]} 48. Nd7 {[%clk 0:00:04.5]} 48... c1=Q {[%clk 0:00:09.6]} 49.
Ra2+ {[%clk 0:00:04.6]} 49... Ke1 {[%clk 0:00:09.8]} 50. Nb6 {[%clk 0:00:05]}
50... Rc3+ {[%clk 0:00:10.9]} 51. Kxh4 {[%clk 0:00:05.9]} 51... Rh8+ {[%clk
0:00:11.9]} 52. Kg4 {[%clk 0:00:06.9]} 52... Qd1+ {[%clk 0:00:13]} 53. f3 {[%clk
0:00:07.6]} 53... Qxf3+ {[%clk 0:00:11.6]} 54. Kg5 {[%clk 0:00:08]} 54... Rh5+
{[%clk 0:00:13.1]} 55. Kg6 {[%clk 0:00:09]} 55... Qf5+ {[%clk 0:00:14.6]} 56.
Kg7 {[%clk 0:00:09.8]} 56... Rh7+ {[%clk 0:00:15.6]} 0-1

[Event "*** Titled Tuesday Blitz"]
[Site "Chess.com"]
[Date "2018.04.03"]
[Round "4"]
[White "pulvettd"]
[Black "chegueps"]
[Result "1-0"]
[WhiteElo "2433"]
[BlackElo "2263"]
[TimeControl "180+2"]
[EndTime "13:52:39 PDT"]
[Termination "pulvettd won on time"]

1. d4 {[%clk 0:03:01.9]} 1... Nf6 {[%clk 0:02:54.8]} 2. c4 {[%clk 0:03:00]} 2...
d6 {[%clk 0:02:54.8]} 3. Nf3 {[%clk 0:02:57.7]} 3... g6 {[%clk 0:02:55.7]} 4.
Nc3 {[%clk 0:02:56.9]} 4... Bg7 {[%clk 0:02:55.2]} 5. e4 {[%clk 0:02:58.3]} 5...
O-O {[%clk 0:02:56.3]} 6. Be2 {[%clk 0:03:00]} 6... Na6 {[%clk 0:02:53.8]} 7.
O-O {[%clk 0:02:57.4]} 7... e5 {[%clk 0:02:54.3]} 8. Be3 {[%clk 0:02:58.5]} 8...
h6 {[%clk 0:02:50.7]} 9. d5 {[%clk 0:02:51.9]} 9... Ng4 {[%clk 0:02:45.5]} 10.
Bd2 {[%clk 0:02:50.9]} 10... f5 {[%clk 0:02:45.2]} 11. Ne1 {[%clk 0:02:48.6]}
11... Nf6 {[%clk 0:02:43.8]} 12. f3 {[%clk 0:02:49.9]} 12... f4 {[%clk
0:02:43.6]} 13. Nd3 {[%clk 0:02:49.7]} 13... g5 {[%clk 0:02:43.2]} 14. b4 {[%clk
0:02:48.2]} 14... h5 {[%clk 0:02:44.1]} 15. h3 {[%clk 0:02:48]} 15... Qe8 {[%clk
0:02:39.4]} 16. a3 {[%clk 0:02:32.2]} 16... Qg6 {[%clk 0:02:39.9]} 17. Nf2
{[%clk 0:02:32]} 17... g4 {[%clk 0:02:30.4]} 18. fxg4 {[%clk 0:02:31.8]} 18...
hxg4 {[%clk 0:02:30.3]} 19. hxg4 {[%clk 0:02:33.7]} 19... Bh6 {[%clk 0:02:20.7]}
20. Bf3 {[%clk 0:02:30.9]} 20... Bg5 {[%clk 0:02:16.6]} 21. Qe2 {[%clk
0:02:10.4]} 21... Rf7 {[%clk 0:02:12]} 22. Be1 {[%clk 0:01:57]} 22... Rh7 {[%clk
0:02:11.4]} 23. Nh3 {[%clk 0:01:56.1]} 23... Bh4 {[%clk 0:02:05.1]} 24. Bxh4
{[%clk 0:01:42.5]} 24... Rxh4 {[%clk 0:02:02.3]} 25. Nf2 {[%clk 0:01:44.4]}
25... Nxg4 {[%clk 0:01:54.5]} 26. Nxg4 {[%clk 0:01:46.3]} 26... Bxg4 {[%clk
0:01:51]} 27. Bxg4 {[%clk 0:01:48.2]} 27... Rxg4 {[%clk 0:01:51.7]} 28. Ra2
{[%clk 0:01:42.9]} 28... Kg7 {[%clk 0:01:49.1]} 29. Rf3 {[%clk 0:01:28.8]} 29...
Rh8 {[%clk 0:01:47.5]} 30. c5 {[%clk 0:01:23.4]} 30... Qh5 {[%clk 0:01:42.6]}
31. Qf1 {[%clk 0:00:51.7]} 31... Rg3 {[%clk 0:01:35.3]} 32. Kf2 {[%clk 0:00:48]}
32... Qg4 {[%clk 0:01:19]} 33. Ke1 {[%clk 0:00:44.6]} 33... Rh2 {[%clk 0:01:15]}
34. cxd6 {[%clk 0:00:27.2]} 34... cxd6 {[%clk 0:01:13.4]} 35. Qb5 {[%clk
0:00:13.6]} 35... Rh1+ {[%clk 0:01:10.6]} 36. Rf1 {[%clk 0:00:11.5]} 36... Re3+
{[%clk 0:01:08.6]} 37. Kd2 {[%clk 0:00:09.9]} 37... Qxg2+ {[%clk 0:01:08.1]} 38.
Ne2 {[%clk 0:00:09.6]} 38... Rxe2+ {[%clk 0:00:28.9]} 39. Qxe2 {[%clk
0:00:09.7]} 39... Qxf1 {[%clk 0:00:29.1]} 40. Qg4+ {[%clk 0:00:10.2]} 40... Kh6
{[%clk 0:00:23.7]} 41. Qe6+ {[%clk 0:00:10.3]} 41... Kh5 {[%clk 0:00:24.4]} 42.
Qf5+ {[%clk 0:00:10.7]} 42... Kh4 {[%clk 0:00:24.8]} 43. Qf6+ {[%clk 0:00:10.6]}
43... Kg3 {[%clk 0:00:25.9]} 44. Qg5+ {[%clk 0:00:09.4]} 44... Kf3 {[%clk
0:00:26.5]} 45. Kc3 {[%clk 0:00:08.5]} 45... Qc1+ {[%clk 0:00:23.6]} 46. Kb3
{[%clk 0:00:06.8]} 46... Qe3+ {[%clk 0:00:18.1]} 47. Ka4 {[%clk 0:00:06.1]} 1-0

[Event "*** Titled Tuesday Blitz"]
[Site "Chess.com"]
[Date "2018.04.03"]
[Round "4"]
[White "ZapataCharlesS"]
[Black "Indianlad"]
[Result "1-0"]
[WhiteElo "2673"]
[BlackElo "2761"]
[TimeControl "180+2"]
[EndTime "13:52:47 PDT"]
[Termination "ZapataCharlesS won by resignation"]

1. e4 {[%clk 0:03:01.9]} 1... c6 {[%clk 0:03:01.3]} 2. d4 {[%clk 0:03:00.3]}
2... d5 {[%clk 0:03:03.2]} 3. Nc3 {[%clk 0:03:02]} 3... dxe4 {[%clk 0:03:03.1]}
4. Nxe4 {[%clk 0:03:02.7]} 4... Nf6 {[%clk 0:03:05]} 5. Nxf6+ {[%clk 0:03:03.3]}
5... exf6 {[%clk 0:03:06.9]} 6. Nf3 {[%clk 0:03:00.3]} 6... Bd6 {[%clk
0:03:08.3]} 7. Bd3 {[%clk 0:02:52.9]} 7... O-O {[%clk 0:03:08.9]} 8. O-O {[%clk
0:02:54.8]} 8... Bg4 {[%clk 0:03:06.8]} 9. h3 {[%clk 0:02:52.6]} 9... Bh5 {[%clk
0:03:02.7]} 10. c3 {[%clk 0:02:50.4]} 10... Nd7 {[%clk 0:03:03.4]} 11. Re1
{[%clk 0:02:48.7]} 11... Nb6 {[%clk 0:03:02.3]} 12. Bd2 {[%clk 0:02:45.7]} 12...
Bc7 {[%clk 0:03:00.7]} 13. Bf1 {[%clk 0:02:36.8]} 13... Qd5 {[%clk 0:02:50]} 14.
g4 {[%clk 0:02:28.9]} 14... Bg6 {[%clk 0:02:49]} 15. Bg2 {[%clk 0:02:29.3]}
15... Qd7 {[%clk 0:02:49.5]} 16. Nh4 {[%clk 0:02:27.1]} 16... Nd5 {[%clk
0:02:48.5]} 17. Nxg6 {[%clk 0:02:25.3]} 17... hxg6 {[%clk 0:02:47]} 18. Qf3
{[%clk 0:02:26]} 18... g5 {[%clk 0:02:46.7]} 19. a3 {[%clk 0:02:25.5]} 19... Bf4
{[%clk 0:02:45.3]} 20. Be3 {[%clk 0:02:22.3]} 20... Rae8 {[%clk 0:02:44.5]} 21.
Rad1 {[%clk 0:02:18.8]} 21... Re7 {[%clk 0:02:40.8]} 22. c4 {[%clk 0:02:17.2]}
22... Nxe3 {[%clk 0:02:41.9]} 23. fxe3 {[%clk 0:02:15.4]} 23... Bc7 {[%clk
0:02:43.3]} 24. c5 {[%clk 0:02:09.6]} 24... Rfe8 {[%clk 0:02:42.5]} 25. e4
{[%clk 0:02:10.3]} 25... Bf4 {[%clk 0:02:42.7]} 26. b4 {[%clk 0:02:06.2]} 26...
g6 {[%clk 0:02:37]} 27. h4 {[%clk 0:02:07.1]} 27... Kg7 {[%clk 0:02:28.1]} 28.
Re2 {[%clk 0:01:57.6]} 28... Rh8 {[%clk 0:02:27.1]} 29. h5 {[%clk 0:01:59]}
29... Ree8 {[%clk 0:02:26.6]} 30. d5 {[%clk 0:01:51]} 30... cxd5 {[%clk
0:02:24.8]} 31. Rxd5 {[%clk 0:01:52.9]} 31... Qa4 {[%clk 0:02:20.6]} 32. hxg6
{[%clk 0:01:43.6]} 32... fxg6 {[%clk 0:02:20.8]} 33. Qd3 {[%clk 0:01:44.6]}
33... Re7 {[%clk 0:02:18]} 34. Kf1 {[%clk 0:01:19.2]} 34... a5 {[%clk
0:02:17.7]} 35. b5 {[%clk 0:01:17.2]} 35... Be5 {[%clk 0:01:55.8]} 36. Rc2
{[%clk 0:01:17.2]} 36... Rh4 {[%clk 0:01:49.1]} 37. c6 {[%clk 0:01:16.8]} 37...
bxc6 {[%clk 0:01:49]} 38. bxc6 {[%clk 0:01:14.1]} 38... Rc7 {[%clk 0:01:18.9]}
39. Rc4 {[%clk 0:01:05.6]} 39... Qxc6 {[%clk 0:01:19.8]} 40. Rxc6 {[%clk
0:01:06.2]} 40... Rxc6 {[%clk 0:01:21.7]} 41. Rxe5 {[%clk 0:01:03.8]} 41... Rc1+
{[%clk 0:01:22.4]} 42. Kf2 {[%clk 0:01:02.9]} 42... fxe5 {[%clk 0:01:23.5]} 43.
Qd7+ {[%clk 0:01:03.6]} 43... Kh6 {[%clk 0:01:24.9]} 44. Qe8 {[%clk 0:00:59.6]}
44... Rc2+ {[%clk 0:01:24.6]} 45. Kg3 {[%clk 0:01:00.7]} 45... Rc3+ {[%clk
0:01:24.1]} 46. Bf3 {[%clk 0:01:01.7]} 46... Rc7 {[%clk 0:01:01.5]} 47. Qh8+
{[%clk 0:00:58.4]} 47... Rh7 {[%clk 0:01:02.5]} 48. Qxe5 {[%clk 0:00:59.9]}
48... a4 {[%clk 0:01:03.4]} 49. Qf6 {[%clk 0:00:51.9]} 49... Rf7 {[%clk
0:00:55.8]} 50. Qh8+ {[%clk 0:00:46.7]} 50... Rh7 {[%clk 0:00:56]} 51. Qf8+
{[%clk 0:00:48]} 51... Rg7 {[%clk 0:00:57.5]} 52. e5 {[%clk 0:00:49.1]} 52...
Kh7 {[%clk 0:00:47.6]} 53. e6 {[%clk 0:00:49.9]} 53... Rg8 {[%clk 0:00:46.9]}
54. e7 {[%clk 0:00:49.9]} 54... Rxf8 {[%clk 0:00:47.9]} 55. exf8=Q {[%clk
0:00:47.4]} 55... Rh3+ {[%clk 0:00:48.7]} 56. Kf2 {[%clk 0:00:47.2]} 56... Rh2+
{[%clk 0:00:49.5]} 57. Ke3 {[%clk 0:00:46.9]} 57... Re2+ {[%clk 0:00:50.6]} 58.
Kd4 {[%clk 0:00:46.8]} 58... Re4+ {[%clk 0:00:36.7]} 59. Kc5 {[%clk 0:00:45.4]}
59... Re5+ {[%clk 0:00:34.1]} 60. Kb6 {[%clk 0:00:45.5]} 60... Re6+ {[%clk
0:00:31.2]} 61. Ka5 {[%clk 0:00:46.3]} 61... Ra6+ {[%clk 0:00:23.3]} 62. Kb4
{[%clk 0:00:47.1]} 62... Rb6+ {[%clk 0:00:24.7]} 63. Kxa4 {[%clk 0:00:48.3]}
63... Ra6+ {[%clk 0:00:23.1]} 64. Kb3 {[%clk 0:00:49.2]} 64... Rb6+ {[%clk
0:00:24.3]} 65. Qb4 {[%clk 0:00:49.9]} 1-0

[Event "*** Titled Tuesday Blitz"]
[Site "Chess.com"]
[Date "2018.04.03"]
[Round "4"]
[White "TheLancer"]
[Black "GM_dmitrij"]
[Result "0-1"]
[WhiteElo "2440"]
[BlackElo "2692"]
[TimeControl "180+2"]
[EndTime "13:52:54 PDT"]
[Termination "GM_dmitrij won by resignation"]

1. e4 {[%clk 0:03:01.9]} 1... e5 {[%clk 0:02:55.9]} 2. Nf3 {[%clk 0:03:02.2]}
2... Nc6 {[%clk 0:02:57.4]} 3. Bb5 {[%clk 0:03:02.1]} 3... a6 {[%clk 0:02:57.9]}
4. Ba4 {[%clk 0:03:03.1]} 4... g6 {[%clk 0:02:59.2]} 5. O-O {[%clk 0:02:56.2]}
5... Bg7 {[%clk 0:03:00.1]} 6. c3 {[%clk 0:02:49.1]} 6... Nge7 {[%clk
0:03:01.1]} 7. d4 {[%clk 0:02:32.2]} 7... exd4 {[%clk 0:03:03]} 8. cxd4 {[%clk
0:02:31.2]} 8... b5 {[%clk 0:03:04.1]} 9. Bb3 {[%clk 0:02:26.9]} 9... d6 {[%clk
0:03:05.6]} 10. Nc3 {[%clk 0:02:15.6]} 10... O-O {[%clk 0:03:06.7]} 11. h3
{[%clk 0:02:16.3]} 11... Na5 {[%clk 0:03:07.7]} 12. Bc2 {[%clk 0:02:13]} 12...
c5 {[%clk 0:03:08.9]} 13. d5 {[%clk 0:01:41.4]} 13... Nc4 {[%clk 0:03:04.9]} 14.
Qe2 {[%clk 0:01:26.3]} 14... Bd7 {[%clk 0:02:57.7]} 15. a4 {[%clk 0:01:19.4]}
15... Re8 {[%clk 0:02:49]} 16. Bd3 {[%clk 0:00:56.6]} 16... Nb6 {[%clk
0:02:29.5]} 17. axb5 {[%clk 0:00:53.3]} 17... c4 {[%clk 0:02:30.7]} 18. Bc2
{[%clk 0:00:31.9]} 18... axb5 {[%clk 0:02:30.8]} 19. Bg5 {[%clk 0:00:25.9]}
19... h6 {[%clk 0:02:12.7]} 20. Be3 {[%clk 0:00:25.3]} 20... b4 {[%clk
0:01:49.4]} 21. Rxa8 {[%clk 0:00:23.7]} 21... Nxa8 {[%clk 0:01:51.3]} 22. Nd1
{[%clk 0:00:21.4]} 22... Bb5 {[%clk 0:01:43.4]} 23. Re1 {[%clk 0:00:19]} 23...
Nc7 {[%clk 0:01:42.4]} 24. Qd2 {[%clk 0:00:20.1]} 24... b3 {[%clk 0:01:32.8]}
25. Bb1 {[%clk 0:00:19.8]} 25... Kh7 {[%clk 0:01:31.9]} 26. Nc3 {[%clk
0:00:20.9]} 26... Qd7 {[%clk 0:01:16.1]} 27. Rd1 {[%clk 0:00:18.9]} 27... Ba6
{[%clk 0:01:12.1]} 28. e5 {[%clk 0:00:18.9]} 28... Nf5 {[%clk 0:01:09.7]} 29. e6
{[%clk 0:00:12.4]} 29... fxe6 {[%clk 0:00:49.7]} 30. dxe6 {[%clk 0:00:13.3]}
30... Qxe6 {[%clk 0:00:51.6]} 31. Bb6 {[%clk 0:00:11.2]} 31... Nb5 {[%clk
0:00:49.5]} 32. Re1 {[%clk 0:00:09.2]} 32... Qd7 {[%clk 0:00:45.7]} 33. Rxe8
{[%clk 0:00:09.1]} 33... Qxe8 {[%clk 0:00:47.6]} 34. Bxf5 {[%clk 0:00:09.9]}
34... gxf5 {[%clk 0:00:49.5]} 35. Nxb5 {[%clk 0:00:10.4]} 35... Qxb5 {[%clk
0:00:38.4]} 36. Bd4 {[%clk 0:00:11.7]} 36... Qd7 {[%clk 0:00:29.2]} 37. Bxg7
{[%clk 0:00:11.9]} 37... Qxg7 {[%clk 0:00:31.1]} 38. Nd4 {[%clk 0:00:10.3]}
38... Bb7 {[%clk 0:00:30]} 39. f3 {[%clk 0:00:09]} 39... Qe5 {[%clk 0:00:30]}
40. Kf2 {[%clk 0:00:09.8]} 40... d5 {[%clk 0:00:21]} 41. Ne2 {[%clk 0:00:09.7]}
41... Bc8 {[%clk 0:00:20.4]} 42. Qa5 {[%clk 0:00:07.8]} 42... Be6 {[%clk
0:00:20.4]} 43. Qa7+ {[%clk 0:00:08.6]} 43... Kg6 {[%clk 0:00:21]} 44. Nd4
{[%clk 0:00:10]} 44... Qf6 {[%clk 0:00:20.4]} 45. Qb6 {[%clk 0:00:10.5]} 45...
Bf7 {[%clk 0:00:21]} 46. Qc5 {[%clk 0:00:11]} 46... f4 {[%clk 0:00:21]} 47. Kf1
{[%clk 0:00:09.5]} 47... Qe5 {[%clk 0:00:21.7]} 48. Ne2 {[%clk 0:00:08.3]} 48...
Qxb2 {[%clk 0:00:20.6]} 49. Qd6+ {[%clk 0:00:09.5]} 49... Qf6 {[%clk 0:00:19.8]}
50. Nxf4+ {[%clk 0:00:10.1]} 50... Kg7 {[%clk 0:00:21.2]} 51. Qc7 {[%clk
0:00:10.2]} 51... b2 {[%clk 0:00:21]} 52. Nh5+ {[%clk 0:00:11.1]} 52... Kg6
{[%clk 0:00:19.5]} 53. Nxf6 {[%clk 0:00:09.2]} 53... b1=Q+ {[%clk 0:00:20.7]}
54. Kf2 {[%clk 0:00:10.7]} 54... Qb2+ {[%clk 0:00:22.3]} 55. Kg3 {[%clk
0:00:09.9]} 55... Qxf6 {[%clk 0:00:24.2]} 56. f4 {[%clk 0:00:11.4]} 56... c3
{[%clk 0:00:24.6]} 57. h4 {[%clk 0:00:11.3]} 57... h5 {[%clk 0:00:25.3]} 58. Qc8
{[%clk 0:00:11.8]} 58... Kh7 {[%clk 0:00:25.1]} 59. Qc5 {[%clk 0:00:11.7]} 59...
d4 {[%clk 0:00:25.2]} 60. Qc6 {[%clk 0:00:12.3]} 60... Qxc6 {[%clk 0:00:25.6]}
0-1